Workbook

Sheet Suggested Servings
A1: Product Type | B1: Product Purchased | C1: Unit of Measure | D1: Pounds Per Unit | E1: 1/4 Cup Servings Per Unit of Measure | F1: 1/2 Cup Servings Per Unit of Measure
A2: Apple | B2: Cameo Apples | C2: Bushel | D2: 42 | E2: 125 | F2: 125
A3: Apple | B3: Fuji Apples | C3: Bushel | D3: 42 | E3: 125 | F3: 125
A4: Apple | B4: Golden Delicious Apples | C4: Bushel | D4: 42 | E4: 125 | F4: 125
A5: Apple | B5: Granny Smith Apples | C5: Bushel | D5: 42 | E5: 125 | F5: 125
A6: Apple | B6: Mutsu Apples | C6: Bushel | D6: 42 | E6: 125 | F6: 125
A7: Apple | B7: Pink Lady Apples | C7: Bushel | D7: 42 | E7: 125 | F7: 125
A8: Apple | B8: Red Delicious Apples | C8: Bushel | D8: 42 | E8: 125 | F8: 125
A9: Apple | B9: Red Delicious Apples | C9: Bushel | D9: 42 | E9: 125 | F9: 125
A10: Apples | B10: Sliced Apples | C10: Pound | D10: 1 | E10: 11.4 | F10: 5.7
A11: Beef | B11: Ground Beef | C11: Pound | D11: 1 | E11: =Table2[[#This Row],[Pounds Per Unit]]*(11.8) -> 11.8 | F11: =Table2[[#This Row],[1/4 Cup Servings Per Unit of Measure]]/(2) -> 5.9
A12: Blueberry | B12: Blueberries | C12: Half Pint | D12: 0.375 | E12: 10.7 | F12: 5.35
A13: Blueberry | B13: Blueberries | C13: Pint | D13: 0.75 | E13: 10.7 | F13: 5.35
A14: Blueberry | B14: Blueberries | C14: Pound | D14: 1 | E14: 11.9 | F14: 5.95
A15: Broccoli | B15: Broccoli | C15: Pound | D15: 1 | E15: =Table2[[#This Row],[Pounds Per Unit]]*(10.2) -> 10.2 | F15: =Table2[[#This Row],[1/4 Cup Servings Per Unit of Measure]]/(2) -> 5.1
A16: Cauliflower | B16: Cauliflower | C16: Pound | D16: 1 | E16: =Table2[[#This Row],[Pounds Per Unit]]*(8.8) -> 8.8 | F16: =Table2[[#This Row],[1/4 Cup Servings Per Unit of Measure]]/2 -> 4.4
A17: Corn | B17: Corn Cobbetts | C17: Case | D17: 24 | E17: 96 | F17: 96
A18: Corn | B18: Corn Cobbetts | C18: Each | D18: 0.25 | E18: 1 | F18: 1
A19: Cucumber | B19: Cucumbers | C19: Each | D19: 1 | E19: =Table2[[#This Row],[Pounds Per Unit]]*(10.5) -> 10.5 | F19: =Table2[[#This Row],[1/4 Cup Servings Per Unit of Measure]]/(2) -> 5.25
A20: Cucumber | B20: Cucumbers | C20: Box | D20: 5 | E20: =Table2[[#This Row],[Pounds Per Unit]]*(10.5) -> 52.5 | F20: =Table2[[#This Row],[1/4 Cup Servings Per Unit of Measure]]/(2) -> 26.25
A21: Cucumber | B21: Cucumbers | C21: Case | D21: 11 | E21: =Table2[[#This Row],[Pounds Per Unit]]*(10.5) -> 115.5 | F21: =Table2[[#This Row],[1/4 Cup Servings Per Unit of Measure]]/(2) -> 57.75
A22: Honey | B22: Honey | C22: Quart Jar | D22: 2.85 | E22: =Table2[[#This Row],[Pounds Per Unit]]*(22.3) -> 63.555 | F22: =Table2[[#This Row],[1/4 Cup Servings Per Unit of Measure]]/(2) -> 31.7775
A23: Honey | B23: Honey | C23: Bottle | D23: 2.3 | E23: =Table2[[#This Row],[Pounds Per Unit]]*(22.3) -> 51.29 | F23: =Table2[[#This Row],[1/4 Cup Servings Per Unit of Measure]]/(2) -> 25.645
A24: Honey | B24: Honey | C24: Pound | D24: 1 | E24: =Table2[[#This Row],[Pounds Per Unit]]*(22.3) -> 22.3 | F24: =Table2[[#This Row],[1/4 Cup Servings Per Unit of Measure]]/(2) -> 11.15
A25: Leafy Green | B25: Artisan Lettuce | C25: Case | D25: 16 | E25: =Table2[[#This Row],[Pounds Per Unit]]*31.3 -> 500.8 | F25: =Table2[[#This Row],[Pounds Per Unit]]*15.65 -> 250.4
A26: Leafy Green | B26: Bibb Lettuce | C26: Case | D26: 6 | E26: =Table2[[#This Row],[Pounds Per Unit]]*31.3 -> 187.8 | F26: =Table2[[#This Row],[Pounds Per Unit]]*15.65 -> 93.9
A27: Leafy Green | B27: Bibb Lettuce | C27: Case | D27: 5 | E27: =Table2[[#This Row],[Pounds Per Unit]]*31.3 -> 156.5 | F27: =Table2[[#This Row],[Pounds Per Unit]]*15.65 -> 78.25
A28: Leafy Green | B28: Bibb Lettuce | C28: Case | D28: 16 | E28: =Table2[[#This Row],[Pounds Per Unit]]*31.3 -> 500.8 | F28: =Table2[[#This Row],[Pounds Per Unit]]*15.65 -> 250.4
A29: Leafy Green | B29: Cabbage | C29: Pound | D29: 1 | E29: =Table2[[#This Row],[Pounds Per Unit]]*(13.8) -> 13.8 | F29: =Table2[[#This Row],[1/4 Cup Servings Per Unit of Measure]]/(2) -> 6.9
A30: Leafy Green | B30: Cabbage | C30: Head | D30: 2.5 | E30: =Table2[[#This Row],[Pounds Per Unit]]*(13.8) -> 34.5 | F30: =Table2[[#This Row],[1/4 Cup Servings Per Unit of Measure]]/(2) -> 17.25
A31: Leafy Green | B31: Collards | C31: Pound | D31: 1 | E31: =Table2[[#This Row],[Pounds Per Unit]]*(10.5) -> 10.5 | F31: =Table2[[#This Row],[1/4 Cup Servings Per Unit of Measure]]/(2) -> 5.25
A32: Leafy Green | B32: Collards | C32: Bag | D32: 5 | E32: =Table2[[#This Row],[Pounds Per Unit]]*(10.5) -> 52.5 | F32: =Table2[[#This Row],[1/4 Cup Servings Per Unit of Measure]]/(2) -> 26.25
A33: Leafy Green | B33: Collards | C33: Bag | D33: 2 | E33: =Table2[[#This Row],[Pounds Per Unit]]*(10.5) -> 21 | F33: =Table2[[#This Row],[1/4 Cup Servings Per Unit of Measure]]/(2) -> 10.5
A34: Leafy Green | B34: Green Leaf Lettuce | C34: Case | D34: 5 | E34: =Table2[[#This Row],[Pounds Per Unit]]*31.3 -> 156.5 | F34: =Table2[[#This Row],[Pounds Per Unit]]*15.65 -> 78.25
A35: Leafy Green | B35: Lettuce | C35: Head | D35: 1 | E35: =Table2[[#This Row],[Pounds Per Unit]]*31.3 -> 31.3 | F35: =Table2[[#This Row],[Pounds Per Unit]]*15.65 -> 15.65
A36: Leafy Green | B36: Romaine Lettuce | C36: Head | D36: 0.25 | E36: =Table2[[#This Row],[Pounds Per Unit]]*31.3 -> 7.825 | F36: =Table2[[#This Row],[Pounds Per Unit]]*15.65 -> 3.9125
A37: Leafy Green | B37: Romaine Lettuce | C37: Case | D37: 12 | E37: =Table2[[#This Row],[Pounds Per Unit]]*31.3 -> 375.6 | F37: =Table2[[#This Row],[Pounds Per Unit]]*15.65 -> 187.8
A38: Leafy Green | B38: Romaine Lettuce | C38: Case | D38: 16 | E38: =Table2[[#This Row],[Pounds Per Unit]]*31.3 -> 500.8 | F38: =Table2[[#This Row],[Pounds Per Unit]]*15.65 -> 250.4
A39: Leafy Green | B39: Romaine Lettuce | C39: Case | D39: 5 | E39: =Table2[[#This Row],[Pounds Per Unit]]*31.3 -> 156.5 | F39: =Table2[[#This Row],[Pounds Per Unit]]*15.65 -> 78.25
A40: Leafy Green | B40: Romaine Lettuce | C40: Bag | D40: 10 | E40: =Table2[[#This Row],[Pounds Per Unit]]*31.3 -> 313 | F40: =Table2[[#This Row],[Pounds Per Unit]]*15.65 -> 156.5
A41: Melon | B41: Cantaloupe | C41: Each | D41: 9 | E41: =Table2[[#This Row],[Pounds Per Unit]]*(6.74) -> 60.66 | F41: =Table2[[#This Row],[1/4 Cup Servings Per Unit of Measure]]/(2) -> 30.33
A42: Melon | B42: Watermelon | C42: Each | D42: 25 | E42: =(Table2[[#This Row],[Pounds Per Unit]]-4.5)*6.1 -> 125.05 | F42: =Table2[[#This Row],[1/4 Cup Servings Per Unit of Measure]]/(2) -> 62.525
A43: Melon | B43: Watermelon | C43: Each | D43: 17 | E43: =(Table2[[#This Row],[Pounds Per Unit]]-4.5)*6.1 -> 76.25 | F43: =Table2[[#This Row],[1/4 Cup Servings Per Unit of Measure]]/(2) -> 38.125
A44: Mushroom | B44: Mushrooms | C44: Case | D44: 1.5 | E44: =Table2[[#This Row],[Pounds Per Unit]]*(8.3) -> 12.45 | F44: =Table2[[#This Row],[1/4 Cup Servings Per Unit of Measure]]/(2) -> 6.225
A45: Mushroom | B45: Mushrooms | C45: Pound | D45: 1 | E45: =Table2[[#This Row],[Pounds Per Unit]]*(8.3) -> 8.3 | F45: =Table2[[#This Row],[1/4 Cup Servings Per Unit of Measure]]/(2) -> 4.15
A46: Mushroom | B46: Pearl Mushrooms | C46: Case | D46: 1.5 | E46: =Table2[[#This Row],[Pounds Per Unit]]*(8.3) -> 12.45 | F46: =Table2[[#This Row],[1/4 Cup Servings Per Unit of Measure]]/(2) -> 6.225
A47: Mushroom | B47: Summer White Mushrooms | C47: Case | D47: 1.5 | E47: =Table2[[#This Row],[Pounds Per Unit]]*(8.3) -> 12.45 | F47: =Table2[[#This Row],[1/4 Cup Servings Per Unit of Measure]]/(2) -> 6.225
A48: Nut | B48: Mini Pecan Pies | C48: Case | D48: 4.5 | E48: 24 | F48: 24
A49: Nut | B49: Mini Pecan Pies | C49: Each | D49: 0.1875 | E49: 1 | F49: 1
A50: Onion | B50: Sweet Onions | C50: Pound | D50: 1 | E50: =Table2[[#This Row],[Pounds Per Unit]]*(7.1) -> 7.1 | F50: =Table2[[#This Row],[1/4 Cup Servings Per Unit of Measure]]/(2) -> 3.55
A51: Pea | B51: Pink Eye Peas | C51: Bag | D51: 5 | E51: =Table2[[#This Row],[Pounds Per Unit]]*(10.6) -> 53 | F51: =Table2[[#This Row],[1/4 Cup Servings Per Unit of Measure]]/(2) -> 26.5
A52: Pea | B52: Pink Eye Peas | C52: Pound | D52: 1 | E52: =Table2[[#This Row],[Pounds Per Unit]]*(10.6) -> 10.6 | F52: =Table2[[#This Row],[1/4 Cup Servings Per Unit of Measure]]/(2) -> 5.3
A53: Pepper | B53: Bell Peppers | C53: Each | D53: 0.25 | E53: =Table2[[#This Row],[Pounds Per Unit]]*(9.7) -> 2.425 | F53: =Table2[[#This Row],[1/4 Cup Servings Per Unit of Measure]]/(2) -> 1.2125
A54: Pepper | B54: Sweet Peppers | C54: Pound | D54: 1 | E54: =Table2[[#This Row],[Pounds Per Unit]]*(14) -> 14 | F54: =Table2[[#This Row],[1/4 Cup Servings Per Unit of Measure]]/(2) -> 7
A55: Persimmon | B55: Persimmons | C55: Box | D55: 30 | E55: =Table2[[#This Row],[Pounds Per Unit]]*(15.7) -> 471 | F55: =Table2[[#This Row],[1/4 Cup Servings Per Unit of Measure]]/(2) -> 235.5
A56: Pork | B56: Sausage Patties | C56: Bag | D56: 4 | E56: =Table2[[#This Row],[Pounds Per Unit]]*(7.52) -> 30.08 | F56: =Table2[[#This Row],[1/4 Cup Servings Per Unit of Measure]]/(2) -> 15.04
A57: Pork | B57: Sausage Patties | C57: Patty | D57: 0.16 | E57: 1 | F57: 1
A58: Potato | B58: Sweet Potato Slabs | C58: Bag | D58: 5 | E58: =Table2[[#This Row],[Pounds Per Unit]]*(9.7) -> 48.5 | F58: =Table2[[#This Row],[1/4 Cup Servings Per Unit of Measure]]/(2) -> 24.25
A59: Potato | B59: Sweet Potatoes | C59: Bushel | D59: 40 | E59: =Table2[[#This Row],[Pounds Per Unit]]*(6.6) -> 264 | F59: =Table2[[#This Row],[1/4 Cup Servings Per Unit of Measure]]/(2) -> 132
A60: Satsuma | B60: Satsumas | C60: Case | D60: 40 | E60: 135 | F60: 135
A61: Satsuma | B61: Satsumas | C61: Case | D61: 25 | E61: 100 | F61: 100
A62: Satsuma | B62: Satsumas | C62: Case | D62: 20 | E62: 67 | F62: 67
A63: Satsuma | B63: Satsumas | C63: Case | D63: 28 | E63: 112 | F63: 112
A64: Seafood | B64: Shrimp | C64: Pound | D64: 1 | E64: =Table2[[#This Row],[Pounds Per Unit]]*(9.92) -> 9.92 | F64: =Table2[[#This Row],[1/4 Cup Servings Per Unit of Measure]]/(2) -> 4.96
A65: Strawberry | B65: Strawberries | C65: Box | D65: 7 | E65: =Table2[[#This Row],[Pounds Per Unit]]*10.5 -> 73.5 | F65: =Table2[[#This Row],[Pounds Per Unit]]*5.25 -> 36.75
A66: Squash | B66: Butternut Squash | C66: Box | D66: 15 | E66: =Table2[[#This Row],[Pounds Per Unit]]*7.5 -> 112.5 | F66: =Table2[[#This Row],[Pounds Per Unit]]*3.75 -> 56.25
A67: Tomato | B67: Cherry Tomatoes | C67: Pound | D67: 1 | E67: =Table2[[#This Row],[Pounds Per Unit]]*(11) -> 11 | F67: =Table2[[#This Row],[1/4 Cup Servings Per Unit of Measure]]/(2) -> 5.5
A68: Tomato | B68: Cherry Tomatoes | C68: Box | D68: 4 | E68: =Table2[[#This Row],[Pounds Per Unit]]*(11) -> 44 | F68: =Table2[[#This Row],[1/4 Cup Servings Per Unit of Measure]]/(2) -> 22
A69: Tomato | B69: Grape Tomatoes | C69: Case | D69: 12 | E69: =Table2[[#This Row],[Pounds Per Unit]]*(9.33) -> 111.96 | F69: =Table2[[#This Row],[1/4 Cup Servings Per Unit of Measure]]/(2) -> 55.98
A70: Tomato | B70: Grape Tomatoes | C70: Case | D70: 20 | E70: =Table2[[#This Row],[Pounds Per Unit]]*(9.33) -> 186.6 | F70: =Table2[[#This Row],[1/4 Cup Servings Per Unit of Measure]]/(2) -> 93.3
A71: Tomato | B71: Heirloom Tomatoes | C71: Pound | D71: 1 | E71: =Table2[[#This Row],[Pounds Per Unit]]*(8.7) -> 8.7 | F71: =Table2[[#This Row],[1/4 Cup Servings Per Unit of Measure]]/(2) -> 4.35
A72: Tomato | B72: Red Tomatoes | C72: Pound | D72: 1 | E72: =Table2[[#This Row],[Pounds Per Unit]]*(7.6) -> 7.6 | F72: =Table2[[#This Row],[1/4 Cup Servings Per Unit of Measure]]/(2) -> 3.8
A73: Tomato | B73: Slicing Tomatoes | C73: Case | D73: 25 | E73: =Table2[[#This Row],[Pounds Per Unit]]*(8.53) -> 213.25 | F73: =Table2[[#This Row],[1/4 Cup Servings Per Unit of Measure]]/(2) -> 106.625
A74: Tomato | B74: Slicing Tomatoes | C74: Pound | D74: 1 | E74: =Table2[[#This Row],[Pounds Per Unit]]*(8.53) -> 8.53 | F74: =Table2[[#This Row],[1/4 Cup Servings Per Unit of Measure]]/(2) -> 4.265
A75: Tomato | B75: Tomatoes | C75: Pound | D75: 1 | E75: =Table2[[#This Row],[Pounds Per Unit]]*(7.6) -> 7.6 | F75: =Table2[[#This Row],[1/4 Cup Servings Per Unit of Measure]]/(2) -> 3.8
A76: Tomato | B76: Tomatoes | C76: Box | D76: 4 | E76: =Table2[[#This Row],[Pounds Per Unit]]*(7.6) -> 30.4 | F76: =Table2[[#This Row],[1/4 Cup Servings Per Unit of Measure]]/(2) -> 15.2
A77: Tomato | B77: Tomatoes | C77: Box | D77: 10 | E77: =Table2[[#This Row],[Pounds Per Unit]]*(7.6) -> 76 | F77: =Table2[[#This Row],[1/4 Cup Servings Per Unit of Measure]]/(2) -> 38
A78: Tomato | B78: Tomatoes, 5x6 | C78: Pound | D78: 1 | E78: =Table2[[#This Row],[Pounds Per Unit]]*(7.6) -> 7.6 | F78: =Table2[[#This Row],[1/4 Cup Servings Per Unit of Measure]]/(2) -> 3.8
A79: Tomato | B79: Tomatoes, 6x6 | C79: Case | D79: 25 | E79: =Table2[[#This Row],[Pounds Per Unit]]*(7.6) -> 190 | F79: =Table2[[#This Row],[1/4 Cup Servings Per Unit of Measure]]/(2) -> 95
A80: Tomato | B80: XL Cherry Tomatoes | C80: Pound | D80: 1 | E80: =Table2[[#This Row],[Pounds Per Unit]]*(12.1) -> 12.1 | F80: =Table2[[#This Row],[1/4 Cup Servings Per Unit of Measure]]/(2) -> 6.05

Sheet September
D2: Farm to School - Local Food Incentive Form
D8: (Enter CNP District/System Name)
D9: September 1, 2025 - September 30, 2025
D11: Product | E11: Amount Purchased | K11: Received From (Distributor or Direct Sale from Farmer) | Q11: Origin of Product (County) | U11: Farm/Farmer Name | AG11: Monday
AG12: Tuesday
AG13: Wednesday
AG14: Thursday
AG15: Friday
D24: Number of Meal Components Served from Alabama
F25: 9/1 - 9/5 | K25: 9/8 - 9/12 | P25: 9/15 - 9/19 | U25: 9/22 - 9/26 | Z25: 9/29 - 9/30
D26: Name | F26: M | G26: T | H26: W | I26: T | J26: F | K26: M | L26: T | M26: W | N26: T | O26: F | P26: M | Q26: T | R26: W | S26: T | T26: F | U26: M | V26: T | W26: W | X26: T | Y26: F | Z26: M | AA26: T
D27: Breakfast
D28: Lunch
D29: After School Snack
D30: FFVP Program
D31: Supper/Dinner Service
D32: Total Meals Per Week | F32: =SUM(F27:J31) -> 0 | K32: =SUM(K27:O31) -> 0 | P32: =SUM(P27:T31) -> 0 | U32: =SUM(U27:Y31) -> 0 | Z32: =SUM(Z27:AA31) -> 0
F33: Total Estimated Payment | U33: =SUM(F32:AA32)*0.2 -> 0 | AD33: =W33 -> 0

Sheet October Overview
D2: Farm to School - Local Food Incentive Form
D8: =September!D8 -> (Enter CNP District/System Name)
D9: October 1, 2025 - October 31, 2025
D11: Product | E11: Amount Purchased | K11: Received From (Distributor or Direct Sale from Farmer) | Q11: Origin of Product (County) | U11: Farm/Farmer Name | AG11: Monday
AG12: Tuesday
AG13: Wednesday
AG14: Thursday
AG15: Friday
D24: Number of Meal Components Served from Alabama
E25: 10/1 - 10/4 | H25: 10/6 - 10/10 | M25: 10/13 - 10/17 | R25: 10/20 - 10/24 | W25: 10/27 - 10/31
D26: Name | E26: W | F26: T | G26: F | H26: M | I26: T | J26: W | K26: T | L26: F | M26: M | N26: T | O26: W | P26: T | Q26: F | R26: M | S26: T | T26: W | U26: T | V26: F | W26: M | X26: T | Y26: W | Z26: T | AA26: F
D27: Breakfast
D28: Lunch
D29: After School Snack
D30: FFVP Program
D31: Supper/Dinner Service
D32: Total Meals Per Week | E32: =SUM(E27:G31) -> 0 | H32: =SUM(H27:L31) -> 0 | M32: =SUM(M27:Q31) -> 0 | R32: =SUM(R27:V31) -> 0 | W32: =SUM(W27:AA31) -> 0
E33: Total Estimated Payment | W33: =(SUM(E32:AA32)*0.2) -> 0 | AD33: =W33 -> 0

Sheet November Overview
D2: Farm to School - Local Food Incentive Form
D8: ='October Overview'!D8 -> (Enter CNP District/System Name)
D9: November 1, 2025 - November 30, 2025
D11: Product | E11: Amount Purchased | I11: Received From (Distributor or Direct Sale from Farmer) | O11: Origin of Product (County) | S11: Farm/Farmer Name
D24: Number of Meal Components Served from Alabama
F25: 11/3 - 11/7 | K25: 11/10 - 11/14 | P25: 11/17 - 11/21 | U25: 11/24 - 11/28
D26: Name | F26: M | G26: T | H26: W | I26: T | J26: F | K26: M | L26: T | M26: W | N26: T | O26: F | P26: M | Q26: T | R26: W | S26: T | T26: F | U26: M | V26: T | W26: W | X26: T | Y26: F
D27: Breakfast
D28: Lunch
D29: After School Snack
D30: FFVP Program
D31: Supper/Dinner Service
D32: Total Meals Per Week | F32: =SUM(F27:J31) -> 0 | K32: =SUM(K27:O31) -> 0 | P32: =SUM(P27:T31) -> 0 | U32: =SUM(U27:Y31) -> 0
F33: Total Estimated Payment | U33: =(SUM(F32:Y32)*0.2) -> 0 | AB33: =U33 -> 0

Sheet December Overview
D2: Farm to School - Local Food Incentive Form
D8: ='October Overview'!D8 -> (Enter CNP District/System Name)
D9: December 1, 2025 - December 31, 2025
D11: Product | E11: Amount Purchased | K11: Received From (Distributor or Direct Sale from Farmer) | Q11: Origin of Product (County) | U11: Farm/Farmer Name
D24: Number of Meal Components Served from Alabama
E25: 12/1 - 12/5 | J25: 12/8 - 12/12 | O25: 12/15 - 12/19 | T25: 12/22 - 12/26 | Y25: 12/30 - 12/31
D26: Name | E26: M | F26: T | G26: W | H26: T | I26: F | J26: M | K26: T | L26: W | M26: T | N26: F | O26: M | P26: T | Q26: W | R26: T | S26: F | T26: M | U26: T | V26: W | W26: T | X26: F | Y26: M | Z26: T | AA26: T
D27: Breakfast
D28: Lunch
D29: After School Snack
D30: FFVP Program
D31: Supper/Dinner Service
D32: Total Meals Per Week | E32: =SUM(E27:I31) -> 0 | J32: =SUM(J27:N31) -> 0 | O32: =SUM(O27:S31) -> 0 | T32: =SUM(T27:X31) -> 0 | Y32: =SUM(Y27:AA31) -> 0
E33: Total Estimated Payment | T33: =(SUM(E32:AA32)*0.2) -> 0

Sheet January Overview
D2: Farm to School - Local Food Incentive Form
D8: ='October Overview'!D8 -> (Enter CNP District/System Name)
D9: January 1, 2026 - January 31, 2026
D11: Product | E11: Amount Purchased | K11: Received From (Distributor or Direct Sale from Farmer) | Q11: Origin of Product (County) | U11: Farm/Farmer Name
D24: Number of Meal Components Served from Alabama
F25: 1/1- 1/2 | H25: 1/5 - 1/9 | M25: 1/12 - 1/16 | R25: 1/19 - 1/23 | W25: 1/26 - 1/31
D26: Name | F26: T | G26: F | H26: M | I26: T | J26: W | K26: T | L26: F | M26: M | N26: T | O26: W | P26: T | Q26: F | R26: M | S26: T | T26: W | U26: T | V26: F | W26: M | X26: T | Y26: W | Z26: T | AA26: F
D27: Breakfast
D28: Lunch
D29: After School Snack
D30: FFVP Program
D31: Supper/Dinner Service
D32: Total Meals Per Week | F32: =SUM(F27:G31) -> 0 | H32: =SUM(H27:L31) -> 0 | M32: =SUM(M27:Q31) -> 0 | R32: =SUM(R27:V31) -> 0 | W32: =SUM(W27:AA31) -> 0
F33: Total Estimated Payment | W33: =(SUM(F32:AA32)*0.2) -> 0 | AD33: =W33 -> 0

Sheet February Overview
D2: Farm to School - Local Food Incentive Form
D8: ='October Overview'!D8 -> (Enter CNP District/System Name)
D9: February 1, 2026 - February 28, 2026
D11: Product | E11: Amount Purchased | K11: Received From (Distributor or Direct Sale from Farmers) | Q11: Origin of Product (County) | U11: Farm/Farmer Name
D24: Number of Meal Components Served from Alabama
F25: 2/2 - 2/6 | K25: 2/9 - 2/13 | P25: 2/16 - 2/20 | U25: 2/23 - 2/27
D26: Name | F26: M | G26: T | H26: W | I26: T | J26: F | K26: M | L26: T | M26: W | N26: T | O26: F | P26: M | Q26: T | R26: W | S26: T | T26: F | U26: M | V26: T | W26: W | X26: T | Y26: F
D27: Breakfast
D28: Lunch
D29: After School Snack
D30: FFVP Program
D31: Supper/Dinner Service
D32: Total Meals Per Week | F32: =SUM(F27:J31) -> 0 | K32: =SUM(K27:O31) -> 0 | P32: =SUM(P27:T31) -> 0 | U32: =SUM(U27:Y31) -> 0
F33: Total Estimated Payment | U33: =(SUM(F32:Y32)*0.2) -> 0 | AB33: =U33 -> 0

Sheet March Overview
D2: Farm to School - Local Food Incentive Form
D8: ='October Overview'!D8 -> (Enter CNP District/System Name)
D9: March 1, 2026 - March 31, 2026
D11: Product | E11: Amount Purchased | K11: Received From (Distributor or Direct Sale from Farmer) | Q11: Origin of Product (County) | U11: Farm/Farmer Name
D24: Number of Meal Components Served from Alabama
E25: 3/2 - 3/6 | J25: 3/9 - 3/13 | O25: 3/16 - 3/20 | T25: 3/23 - 3/27 | Y25: 3/30 - 3/31
D26: Name | E26: M | F26: T | G26: W | H26: T | I26: F | J26: M | K26: T | L26: W | M26: T | N26: F | O26: M | P26: T | Q26: W | R26: T | S26: F | T26: M | U26: T | V26: W | W26: T | X26: F | Y26: M | Z26: T
D27: Breakfast
D28: Lunch
D29: After School Snack
D30: FFVP Program
D31: Supper/Dinner Service
D32: Total Meals Per Week | E32: =SUM(E27:I31) -> 0 | J32: =SUM(J27:N31) -> 0 | O32: =SUM(O27:S31) -> 0 | T32: =SUM(T27:X31) -> 0 | Y32: =SUM(Y27:Z31) -> 0
E33: Total Estimated Payment | T33: =SUM(E32:Z32)*0.2 -> 0

Sheet April Overview
D2: Farm to School - Local Food Incentive Form
D8: ='October Overview'!D8 -> (Enter CNP District/System Name)
D9: April 1, 2026 - April 30, 2026
D11: Product | E11: Amount Purchased | K11: Received From (Distributor or Direct Sale from Farmers) | Q11: Origin of Product (County) | U11: Farm/Farmer Name
D24: Number of Meal Components Served from Alabama
E25: 4/1 - 4/3 | H25: 4/6 - 4/10 | M25: 4/13 - 4/17 | R25: 4/20 - 4/24 | W25: 4/27 - 4/30
D26: Name | E26: W | F26: T | G26: F | H26: M | I26: T | J26: W | K26: T | L26: F | M26: M | N26: T | O26: W | P26: T | Q26: F | R26: M | S26: T | T26: W | U26: T | V26: F | W26: M | X26: T | Y26: W | Z26: T
D27: Breakfast
D28: Lunch
D29: After School Snack
D30: FFVP Program
D31: Supper/Dinner Service
D32: Total Meals Per Week | E32: =SUM(E27:G31) -> 0 | H32: =SUM(H27:L31) -> 0 | M32: =SUM(M27:Q31) -> 0 | R32: =SUM(R27:V31) -> 0 | W32: =SUM(W27:Z31) -> 0
E33: Total Estimated Payment | W33: =SUM(E32:Z32)*0.2 -> 0 | AB33: =W33 -> 0 | AD33: =W33 -> 0

Sheet May Overview
D2: Farm to School - Local Food Incentive Form
D8: ='October Overview'!D8 -> (Enter CNP District/System Name)
D9: May 1, 2026 - May 31, 2026
D11: Product | E11: Amount Purchased | K11: Received From (Distributor or Direct Sale from Farmer) | Q11: Origin of Product (County) | U11: Farm/Farmer Name
D24: Number of Meal Components Served from Alabama
G25: 2025-05-01 | H25: 5/4 - 5/8 | M25: 5/11 - 5/15 | R25: 5/18 - 5/22 | W25: 5/25 - 5/29
D26: Name | G26: F | H26: M | I26: T | J26: W | K26: T | L26: F | M26: M | N26: T | O26: W | P26: T | Q26: F | R26: M | S26: T | T26: W | U26: T | V26: F | W26: M | X26: T | Y26: W | Z26: T | AA26: F
D27: Breakfast
D28: Lunch
D29: After School Snack
D30: FFVP Program
D31: Supper/Dinner Service
D32: Total Meals Per Week | G32: =SUM(G27:G31) -> 0 | H32: =SUM(H27:L31) -> 0 | M32: =SUM(M27:Q31) -> 0 | R32: =SUM(R27:V31) -> 0 | W32: =SUM(W27:AA31) -> 0
G33: Total Estimated Payment | W33: =SUM(G32:AA32)*0.2 -> 0 | AB33: =W33 -> 0 | AC33: =W33 -> 0 | AD33: =W33 -> 0

Sheet June Overview
D2: Farm to School - Local Food Incentive Form
D8: ='October Overview'!D8 -> (Enter CNP District/System Name)
D9: June 1, 2026 - June 30, 2026
D11: Product | E11: Amount Purchased | K11: Received From (Distributor or Direct Sale from Farmer) | Q11: Origin of Product (County) | U11: Farm/Farmer Name
D24: Number of Meal Components Served from Alabama
E25: 6/1 - 6/5 | J25: 6/8 - 6/12 | O25: 6/15 - 6/19 | T25: 6/22 - 6/26 | Y25: 6/29 - 6/30
D26: Name | E26: M | F26: T | G26: W | H26: T | I26: F | J26: M | K26: T | L26: W | M26: T | N26: F | O26: M | P26: T | Q26: W | R26: T | S26: F | T26: M | U26: T | V26: W | W26: T | X26: F | Y26: M | Z26: M
D27: Breakfast
D28: Lunch
D29: After School Snack
D30: FFVP Program
D31: Supper/Dinner Service
D32: Total Meals Per Week | E32: =SUM(E27:I31) -> 0 | J32: =SUM(J27:N31) -> 0 | O32: =SUM(O27:S31) -> 0 | T32: =SUM(T27:X31) -> 0 | Y32: =SUM(Y27:Z31) -> 0
E33: Total Estimated Payment | T33: =SUM(E32:Z32)*0.2 -> 0

Sheet July Overview
D2: Farm to School - Local Food Incentive Form
D8: ='October Overview'!D8 -> (Enter CNP District/System Name)
D9: July 1, 2026 - July 31, 2026
D11: Product | E11: Amount Purchased | K11: Received From (Distributor or Direct Sale from Farmer) | Q11: Origin of Product (County) | U11: Farm/Farmer Name
D24: Number of Meal Components Served from Alabama
E25: 7/1 - 7/3 | H25: 7/6 - 7/10 | M25: 7/13 - 7/17 | R25: 7/20 - 7/24 | W25: 7/27 - 7/31
D26: Name | E26: W | F26: T | G26: F | H26: M | I26: T | J26: W | K26: T | L26: F | M26: M | N26: T | O26: W | P26: T | Q26: F | R26: M | S26: T | T26: W | U26: T | V26: F | W26: M | X26: T | Y26: W | Z26: T | AA26: F
D27: Breakfast
D28: Lunch
D29: After School Snack
D30: FFVP Program
D31: Supper/Dinner Service
D32: Total Meals Per Week | E32: =SUM(E27:G31) -> 0 | H32: =SUM(H27:L31) -> 0 | M32: =SUM(M27:Q31) -> 0 | R32: =SUM(R27:V31) -> 0 | W32: =SUM(W27:AA31) -> 0
E33: Total Estimated Payment | W33: =SUM(E32:AA32)*0.2 -> 0

Sheet August Overview
D2: Farm to School - Local Food Incentive Form
D8: ='October Overview'!D8 -> (Enter CNP District/System Name)
D9: August 1, 2026 - August 31, 2026
D11: Product | E11: Amount Purchased | J11: Received From (Distributor or Direct Sale from Farmer) | P11: Origin of Product (County) | T11: Farm/Farmer Name
D24: Number of Meal Components Served from Alabama
E25: 8/3 - 8/7 | J25: 8/11 - 8/15 | O25: 8/18 - 8/22 | T25: 8/25 - 8/29 | Y25: 8/31
D26: Name | E26: M | F26: T | G26: W | H26: T | I26: F | J26: M | K26: T | L26: W | M26: T | N26: F | O26: M | P26: T | Q26: W | R26: T | S26: F | T26: M | U26: T | V26: W | W26: T | X26: F | Y26: M
D27: Breakfast
D28: Lunch
D29: After School Snack
D30: FFVP Program
D31: Supper/Dinner Service
D32: Total Meals Per Week | E32: =SUM(E27:I31) -> 0 | J32: =SUM(J27:N31) -> 0 | O32: =SUM(O27:S31) -> 0 | T32: =SUM(T27:X31) -> 0 | Y32: =SUM(Y27:Y31) -> 0
E33: Total Estimated Payment | T33: =SUM(E32:Y32)*0.2 -> 0 | AA33: =R33 -> 0 | AB33: =R33 -> 0

Sheet September '26 Overview
D2: Farm to School - Local Food Incentive Form
D8: ='October Overview'!D8 -> (Enter CNP District/System Name)
D9: September 1, 2026 - September 30, 2026
D11: Product | E11: Amount Purchased | K11: Received From (Distributor or Direct Sale from Farmer) | Q11: Origin of Product (County) | U11: Farm/Farmer Name
D24: Number of Meal Components Served from Alabama
F25: 9/1 - 9/4 | J25: 9/7 - 9/11 | O25: 9/14 - 9/18 | T25: 9/21 - 9/25 | Y25: 9/28 - 9/30
D26: Name | F26: T | G26: W | H26: T | I26: F | J26: M | K26: T | L26: W | M26: T | N26: F | O26: M | P26: T | Q26: W | R26: T | S26: F | T26: M | U26: T | V26: W | W26: T | X26: F | Y26: M | Z26: T | AA26: W
D27: Breakfast
D28: Lunch
D29: After School Snack
D30: FFVP Program
D31: Supper/Dinner Service
D32: Total Meals Per Week | F32: =SUM(F27:I31) -> 0 | J32: =SUM(J27:N31) -> 0 | O32: =SUM(O27:S31) -> 0 | T32: =SUM(T27:X31) -> 0 | Y32: =SUM(Y27:AA31) -> 0
F33: Total Estimated Payment | T33: =SUM(F32:AA32)*0.2 -> 0 | AC33: =S33 -> 0 | AD33: =S33 -> 0
